fUST/lending_fUST_20250124
["ID","MTS","AMOUNT","RATE_DAILY","PERIOD"]
[350209524,1737693040713,-936.55,0.00019315,3]
[350209525,1737693040723,-500.0,0.00019315,3]
[350209526,1737693040732,-321.76,0.00019315,3]
[350209527,1737693040742,-307.14404555,0.00019315,3]
[350209528,1737693040751,-543.13,0.00019315,3]
[350209529,1737693040761,-500.0,0.00019315,3]
[350209530,1737693040771,-617.36530235,0.00019315,3]
[350209531,1737693040781,-569.43,0.00019315,3]
[350209532,1737693040791,-404.52,0.00019315,3]
[350209533,1737693040801,-500.0,0.00019315,3]
[350209534,1737693040811,-581.64,0.00019315,3]
[350209535,1737693040821,-428.8,0.00019315,3]
[350209536,1737693040830,-500.0,0.00019315,3]
[350209537,1737693040842,-151.0,0.00019315,2]
[350209538,1737693040852,-422.00562859,0.00019315,3]
[350209539,1737693040862,-151.0,0.00019315,2]
[350209540,1737693040871,-151.0,0.00019315,2]
[350209541,1737693040880,-151.0,0.00019315,2]
[350209542,1737693040891,-151.0,0.00019315,2]
[350209543,1737693040901,-151.0,0.00019315,2]
[350209544,1737693040910,-151.0,0.00019315,2]
[350209545,1737693040922,-151.0,0.00019315,2]
[350209546,1737693040931,-203.778362,0.00019315,2]
[350209547,1737693040941,-500.0,0.00019315,3]
[350209548,1737693040950,-500.0,0.00019315,3]
[350209549,1737693040959,-500.0,0.00019315,3]
[350209550,1737693040968,-500.0,0.00019315,2]
[350209551,1737693040978,-500.0,0.00019315,3]
[350209552,1737693040988,-617.207157,0.00019315,2]
[350209553,1737693040998,-617.207157,0.00019315,2]
[350209554,1737693041007,-151.0,0.00019315,2]
[350209555,1737693041017,-617.207157,0.00019315,2]
[350209556,1737693041026,-151.0,0.00019315,2]
[350209557,1737693041037,-617.207157,0.00019315,2]
[350209558,1737693041046,-151.0,0.00019315,2]
[350209559,1737693041055,-617.207157,0.00019315,2]
[350209560,1737693041065,-151.0,0.00019315,2]
[350209561,1737693041074,-151.0,0.00019315,2]
[350209562,1737693041083,-151.0,0.00019315,2]
[350209563,1737693041093,-617.207157,0.00019315,2]
[350209564,1737693041103,-617.207157,0.00019315,2]
[350209565,1737693041112,-617.207157,0.00019315,2]
[350209566,1737693041122,-617.207157,0.00019315,2]
[350209567,1737693041131,-617.207157,0.00019315,2]
[350209568,1737693041140,-151.0,0.00019315,2]
[350209569,1737693041149,-158.253214,0.00019315,2]
[350209570,1737693041159,-500.0,0.00019315,3]
[350209571,1737693041168,-500.0,0.00019315,3]
[350209572,1737693041178,-165.936386,0.00019315,2]
[350209573,1737693041187,-500.0,0.00019315,3]
[350209574,1737693041196,-500.0,0.00019315,3]
[350209575,1737693041205,-500.0,0.00019315,3]
[350209576,1737693041297,-156.695605,0.00019315,2]
[350209577,1737693041307,-156.695605,0.00019315,2]
[350209578,1737693041317,-156.695605,0.00019315,2]
[350209579,1737693041327,-156.695605,0.00019315,2]
[350209580,1737693041340,-156.695605,0.00019315,2]
[350209581,1737693041350,-156.695605,0.00019315,2]
[350209582,1737693041366,-156.695605,0.00019315,2]
[350209583,1737693041377,-156.695605,0.00019315,2]
[350209584,1737693041386,-156.695605,0.00019315,2]
[350209585,1737693041395,-156.695607,0.00019315,2]
[350209586,1737693041404,-500.0,0.00019315,3]
[350209587,1737693041413,-500.0,0.00019315,3]
[350209588,1737693041423,-500.0,0.00019315,3]
[350209589,1737693041433,-1082.02,0.00019315,3]
[350209590,1737693041442,-500.0,0.00019315,3]
[350209591,1737693041451,-500.0,0.00019315,3]
[350209592,1737693041460,-500.0,0.00019315,3]
[350209593,1737693041469,-500.0,0.00019315,3]
[350209594,1737693041478,-500.0,0.00019315,3]
[350209595,1737693041488,-500.0,0.00019315,3]
[350209596,1737693041498,-500.0,0.00019315,3]
[350209597,1737693041507,-545.44,0.00019315,3]
[350209598,1737693041517,-500.0,0.00019315,3]
[350209599,1737693041526,-193.48,0.00019315,3]
[350209600,1737693041535,-248.999318,0.00019315,2]
[350209601,1737693041545,-290.574743,0.00019315,2]
[350209602,1737693041555,-500.0,0.00019315,3]
[350209603,1737693041564,-500.0,0.00019315,3]
[350209604,1737693041574,-153.0,0.000194,2]
[350209605,1737693041583,-154.2311524,0.000194,2]
[350209606,1737693041593,-154.9615637,0.000194,2]
[350209607,1737693041603,-224.2157431,0.000194,2]
[350209608,1737693041612,-438.3020943,0.000194,2]
[350209609,1737693041622,-153.0,0.000194,2]
[350209610,1737693041631,-215.3284382,0.000194,2]
[350209611,1737693041640,-151.0,0.000194,2]
[350209612,1737693041650,-215.3284382,0.000194,2]
[350209613,1737693041659,-153.0,0.000194,2]
[350209614,1737693041668,-617.207157,0.000194,2]
[350209615,1737693041678,-151.0,0.000194,2]
[350209616,1737693041687,-617.207159,0.000194,2]
[350209617,1737693041696,-151.0,0.0001945,2]
[350209618,1737693041706,-259.68538367,0.00019452,2]
[350209619,1737693041715,-500.0,0.00019452,3]
[350209620,1737693041724,-500.0,0.00019452,3]
[350209621,1737693041733,-500.0,0.00019452,3]
[350209622,1737693041742,-500.0,0.00019452,3]
[350209623,1737693041752,-500.0,0.00019452,3]
[350209624,1737693041761,-936.55,0.00019452,3]
[350209625,1737693041770,-500.0,0.00019452,3]
[350209626,1737693041780,-499.52,0.00019452,3]
[350209627,1737693041789,-500.0,0.00019452,3]
[350209628,1737693041798,-500.0,0.00019452,3]
[350209629,1737693041807,-500.0,0.00019452,3]
[350209630,1737693041816,-500.0,0.00019452,3]
[350209631,1737693041826,-500.0,0.00019452,2]
[350209632,1737693041835,-500.0,0.00019452,3]
[350209633,1737693041851,-151.0,0.00019452,2]
[350209634,1737693041861,-151.0,0.00019452,2]
[350209635,1737693041875,-170.28,0.00019452,3]
[350209636,1737693041885,-500.0,0.00019452,3]
[350209637,1737693041894,-500.0,0.00019452,3]
[350209638,1737693041903,-500.0,0.00019452,3]
[350209639,1737693041912,-500.0,0.00019452,3]
[350209640,1737693041923,-500.0,0.00019452,3]
[350209641,1737693041933,-500.0,0.00019452,3]
[350209642,1737693041942,-500.0,0.00019452,3]
[350209643,1737693041951,-1082.02,0.00019452,3]
[350209644,1737693041960,-552.45647616,0.00019452,3]
[350209645,1737693041970,-500.0,0.00019452,3]
[350209646,1737693041979,-500.0,0.00019452,3]
[350209647,1737693041988,-577.2,0.00019452,3]
[350209648,1737693041998,-500.0,0.00019452,3]
[350209649,1737693042008,-500.0,0.00019452,3]
[350209650,1737693042017,-500.0,0.00019452,3]
[350209651,1737693042028,-545.44,0.00019452,3]
[350209652,1737693042038,-500.0,0.00019452,3]
[350209653,1737693042048,-500.0,0.00019452,3]
[350209654,1737693042059,-500.0,0.00019452,3]
[350209655,1737693042068,-500.0,0.00019534,2]
[350209656,1737693042077,-500.0,0.00019534,2]
[350209657,1737693042087,-501.16621595,0.00019534,2]
[350209658,1737693042096,-506.71146989,0.00019534,2]
[350209659,1737693042106,-500.58254723,0.00019544,2]
[350209660,1737693042115,-167.87688512,0.00019544,2]
[350209661,1737693042125,-504.96126157,0.00019544,2]
[350209662,1737693042136,-502.18859505,0.00019544,2]
[350209663,1737693042146,-314.20581344,0.00019545,2]
[350209664,1737693042156,-501.0950375,0.00019578,2]
[350209666,1737693042168,-167.87115894,0.00019579,2]
[350209667,1737693042177,-500.0,0.00019589,3]
[350209668,1737693042186,-500.0,0.00019589,3]
[350209669,1737693042196,-500.0,0.00019589,3]
[350209670,1737693042205,-500.0,0.00019589,3]
[350209671,1737693042215,-936.55,0.00019589,3]
[350209673,1737693042225,-500.0,0.00019589,3]
[350209675,1737693042234,-500.0,0.00019589,3]
[350209677,1737693042243,-316.57,0.00019589,3]
[350209679,1737693042253,-306.65818323,0.00019589,3]
[350209681,1737693042263,-587.78,0.00019589,3]
[350209682,1737693042272,-500.0,0.00019589,2]
[350209683,1737693042281,-457.16,0.00019589,3]
[350209684,1737693042290,-500.0,0.00019589,3]
[350209685,1737693042299,-353.0,0.00019589,3]
[350209686,1737693042308,-500.0,0.00019589,3]
[350209687,1737693042320,-500.0,0.00019589,3]
[350209688,1737693042334,-500.0,0.00019589,3]
[350209689,1737693042343,-500.0,0.00019589,3]
[350209690,1737693042352,-500.0,0.00019589,3]
[350209691,1737693042363,-1082.02,0.00019589,3]
[350209692,1737693042372,-363.84,0.00019589,3]
[350209693,1737693042382,-500.0,0.00019589,3]
[350209694,1737693042391,-500.0,0.00019589,3]
[350209696,1737693042401,-500.0,0.00019589,3]
[350209697,1737693042410,-545.44,0.00019589,3]
[350209698,1737693042419,-500.0,0.00019589,3]
[350209699,1737693042429,-500.0,0.00019589,3]
[350209700,1737693042438,-357.05,0.00019589,3]
[350209701,1737693042447,-197.526,0.00019596,2]
[350209702,1737693042456,-151.34502659,0.00019617,2]
[350209703,1737693042466,-269.22634476,0.00019617,2]
[350209704,1737693042475,-272.99997869,0.00019645,2]
[350209705,1737693042485,-500.0,0.00019711,2]
[350209706,1737693042494,-531.38178619,0.00019711,2]
[350209707,1737693042504,-500.0,0.00019726,3]
[350209708,1737693042513,-500.0,0.00019726,3]
[350209709,1737693042522,-500.0,0.00019726,3]
[350209710,1737693042532,-500.0,0.00019726,3]
[350209711,1737693042542,-936.55,0.00019726,3]
[350209712,1737693042551,-608.87,0.00019726,3]
[350209713,1737693042560,-522.59,0.00019726,3]
[350209714,1737693042570,-500.0,0.00019726,2]
[350209715,1737693042579,-500.0,0.00019726,3]
[350209716,1737693042589,-500.0,0.00019726,3]
[350209717,1737693042598,-500.0,0.00019726,3]
[350209718,1737693042608,-500.0,0.00019726,3]
[350209719,1737693042617,-200.95,0.00019726,3]
[350209720,1737693042626,-500.0,0.00019726,3]
[350209721,1737693042635,-1082.02,0.00019726,3]
[350209722,1737693042645,-500.0,0.00019726,3]
[350209723,1737693042654,-315.58,0.00019726,3]
[350209724,1737693042664,-500.0,0.00019726,3]
[350209725,1737693042673,-545.44,0.00019726,3]
[350209726,1737693042683,-500.0,0.00019726,3]
[350209727,1737693042692,-324.17,0.00019726,3]
[350209728,1737693042701,-191.24789098,0.00019736,7]
[350209729,1737693042711,-500.0,0.00019747,2]
[350209730,1737693042720,-370.12594395,0.00019809,2]
[350209731,1737693042729,-420.0,0.00019853,2]
[350209732,1737693042739,-254.04,0.00019863,3]
[350209733,1737693042748,-500.0,0.00019863,3]
[350209734,1737693042757,-500.0,0.00019863,3]
[350209735,1737693042767,-936.55,0.00019863,3]
[350209736,1737693042776,-500.0,0.00019863,2]
[350209737,1737693042785,-500.0,0.00019863,3]
[350209738,1737693042794,-500.0,0.00019863,3]
[350209739,1737693042803,-331.34570467,0.00019863,3]
[350209740,1737693042812,-500.0,0.00019863,3]
[350209741,1737693042821,-500.0,0.00019863,3]
[350209742,1737693042830,-1082.02,0.00019863,3]
[350209743,1737693042840,-500.0,0.00019863,3]
[350209744,1737693042851,-500.0,0.00019863,3]
[350209745,1737693042860,-545.44,0.00019863,3]
[350209746,1737693042869,-500.0,0.00019863,3]
[350209747,1737693042878,-505.62557559,0.0001988,2]
[350209748,1737693042889,-1959.59997615,0.00019888,7]
[350209749,1737693042898,-250.03870809,0.000199,2]
[350209750,1737693042907,-500.0,0.00019999,2]
[350209751,1737693042917,-242.89585707,0.00019999,2]
[350209752,1737693042927,-500.0,0.00019999,2]
[350209753,1737693042936,-500.0,0.00019999,2]
[350209754,1737693042945,-651.26575629,0.00019999,2]
[350209755,1737693042955,-39379.91372788,0.0002,2]
[350209756,1737693042963,-4799.0,0.0002,2]
[350209757,1737693042973,-232.31852554,0.0002,3]
[350209758,1737693042982,-265.38,0.0002,3]
[350209759,1737693042991,-936.55,0.0002,3]
[350209760,1737693043000,-500.0,0.0002,2]
[350209761,1737693043009,-500.0,0.0002,3]
[350209762,1737693043018,-500.0,0.0002,3]
[350209763,1737693043027,-500.0,0.0002,3]
[350209764,1737693043037,-558.49,0.0002,3]
[350209765,1737693043047,-1082.02,0.0002,3]
[350209766,1737693043056,-500.0,0.0002,3]
[350209767,1737693043066,-11932.07939768,0.0002,2]
[350209768,1737693043075,-303.11161607,0.0002,2]
[350209769,1737693043085,-500.0,0.0002,3]
[350209770,1737693043094,-545.44,0.0002,3]
[350209771,1737693043103,-500.0,0.0002,3]
[350209772,1737693043113,-250.038708,0.00020038,2]
[350209773,1737693043123,-936.55,0.00020136,3]
[350209774,1737693043133,-507.59581319,0.00020136,2]
[350209775,1737693043143,-372.92,0.00020136,2]
[350209776,1737693043152,-508.16830767,0.00020136,3]
[350209777,1737693043162,-500.0,0.00020136,3]
[350209778,1737693043172,-500.0,0.00020136,3]
[350209779,1737693043182,-1082.02,0.00020136,3]
[350209780,1737693043192,-500.0,0.00020136,3]
[350209781,1737693043201,-500.0,0.00020136,3]
[350209782,1737693043210,-545.44,0.00020136,3]
[350209783,1737693043219,-500.0,0.00020136,3]
[350209784,1737693043228,-250.038708,0.00020176,2]
[350209785,1737693043237,-1000.0,0.00020259,2]
[350209786,1737693043246,-936.55,0.00020273,3]
[350209787,1737693043255,-500.0,0.00020273,3]
[350209788,1737693043264,-500.0,0.00020273,3]
[350209789,1737693043274,-1082.02,0.00020273,3]
[350209790,1737693043283,-500.0,0.00020273,3]
[350209791,1737693043292,-500.0,0.00020273,3]
[350209792,1737693043301,-545.44,0.00020273,3]
[350209793,1737693043311,-500.0,0.00020273,3]
[350209794,1737693043320,-471.76015806,0.00020295,2]
[350209795,1737693043330,-250.038708,0.00020314,2]
[350209796,1737693043339,-936.55,0.0002041,3]
[350209797,1737693043349,-500.0,0.0002041,3]
[350209798,1737693043358,-500.0,0.0002041,3]
[350209799,1737693043367,-1082.02,0.0002041,3]
[350209800,1737693043376,-500.0,0.0002041,3]
[350209801,1737693043386,-500.0,0.0002041,3]
[350209802,1737693043395,-545.44,0.0002041,3]
[350209803,1737693043404,-500.0,0.0002041,3]
[350209804,1737693043413,-250.038708,0.00020452,2]
[350209805,1737693043423,-370.12594395,0.00020539,2]
[350209806,1737693043433,-936.55,0.00020547,3]
[350209807,1737693043442,-500.0,0.00020547,3]
[350209808,1737693043452,-500.0,0.00020547,3]
[350209809,1737693043462,-1082.02,0.00020547,3]
[350209810,1737693043471,-506.56,0.00020547,3]
[350209811,1737693043481,-500.0,0.00020547,3]
[350209812,1737693043491,-545.44,0.00020547,3]
[350209813,1737693043500,-500.0,0.00020547,3]
[350209814,1737693043510,-250.038708,0.0002059,2]
[350209815,1737693043604,-936.55,0.00020684,3]
[350209816,1737693043614,-500.0,0.00020684,3]
[350209817,1737693043624,-500.0,0.00020684,3]
[350209818,1737693043634,-1082.02,0.00020684,3]
[350209819,1737693043644,-500.0,0.00020684,3]
[350209820,1737693043654,-545.44,0.00020684,3]
[350209821,1737693043664,-500.0,0.00020684,3]
[350209822,1737693043676,-2073.736,0.00020687,2]
[350209823,1737693043685,-536.0,0.00020687,2]
[350209824,1737693043695,-2305.0,0.00020687,2]
[350209825,1737693043705,-395.0,0.00020687,2]
[350209826,1737693043714,-250.038708,0.00020728,2]
[350209827,1737693043723,-1696.0830145,0.0002079,2]
[350209828,1737693043733,-150.298728,0.000208,2]
[350209829,1737693043743,-936.55,0.00020821,3]
[350209830,1737693043752,-500.0,0.00020821,3]
[350209831,1737693043763,-500.0,0.00020821,3]
[350209832,1737693043773,-1082.02,0.00020821,3]
[350209833,1737693043783,-500.0,0.00020821,3]
[350209834,1737693043792,-545.44,0.00020821,3]
[350209835,1737693043802,-487.02,0.00020821,3]
[350209836,1737693043811,-150.0,0.00020861,2]
[350209837,1737693043821,-150.205,0.00020861,2]
[350209838,1737693043830,-150.0,0.00020861,2]
[350209839,1737693043842,-150.0,0.00020861,2]
[350209840,1737693043851,-250.038708,0.00020866,2]
[350209841,1737693043860,-936.55,0.00020958,3]
[350209842,1737693043870,-429.42923598,0.00020958,3]
[350209843,1737693043879,-500.0,0.00020958,3]
[350209844,1737693043890,-1082.02,0.00020958,3]
[350209845,1737693043900,-500.0,0.00020958,3]
[350209846,1737693043909,-545.44,0.00020958,3]
[350209847,1737693043923,-3000.0,0.00021,2]
[350209848,1737693043933,-250.038708,0.00021003,2]
[350209849,1737693043943,-3000.0,0.0002101,2]
[350209850,1737693043952,-3000.0,0.0002102,2]
[350209851,1737693043962,-3000.0,0.0002103,2]
[350209852,1737693043971,-490.71970216,0.00021035,2]
[350209853,1737693043981,-3000.0,0.0002104,2]
[350209854,1737693043990,-3000.0,0.0002105,2]
[350209855,1737693044000,-5933.157935,0.0002106,2]
[350209856,1737693044010,-936.55,0.00021095,3]
[350209857,1737693044019,-500.0,0.00021095,3]
[350209858,1737693044029,-1082.02,0.00021095,3]
[350209859,1737693044039,-500.0,0.00021095,3]
[350209860,1737693044048,-545.44,0.00021095,3]
[350209861,1737693044057,-763.99,0.000211,2]
[350209862,1737693044067,-250.038708,0.00021141,2]
[350209863,1737693044077,-163.272232,0.00021209,2]
[350209864,1737693044086,-936.55,0.00021232,3]
[350209865,1737693044096,-500.0,0.00021232,3]
[350209866,1737693044105,-1082.02,0.00021232,3]
[350209867,1737693044115,-500.0,0.00021232,3]
[350209868,1737693044124,-545.44,0.00021232,3]
[350209869,1737693044133,-1500.0,0.00021261,2]
[350209870,1737693044143,-370.12594395,0.0002127,2]
[350209871,1737693044152,-250.038708,0.00021279,2]
[350209872,1737693044162,-2253.4614106,0.00021297,7]
[350209873,1737693044172,-152.34,0.00021327,2]
[350209874,1737693044181,-936.55,0.00021369,3]
[350209875,1737693044191,-500.0,0.00021369,3]
[350209876,1737693044200,-1082.02,0.00021369,3]
[350209877,1737693044209,-500.0,0.00021369,3]
[350209878,1737693044218,-545.44,0.00021369,3]
[350209879,1737693044228,-623.0,0.000214,2]
[350209880,1737693044237,-250.038708,0.00021417,2]
[350209881,1737693044246,-500.07926137,0.000215,5]
[350209882,1737693044256,-936.55,0.00021506,3]
[350209883,1737693044266,-500.0,0.00021506,3]
[350209884,1737693044276,-1082.02,0.00021506,3]
[350209885,1737693044285,-500.0,0.00021506,3]
[350209886,1737693044295,-545.44,0.00021506,3]
[350209887,1737693044304,-250.038708,0.00021555,2]
[350209888,1737693044313,-4799.0,0.000216,4]
[350209889,1737693044323,-936.55,0.00021643,3]
[350209890,1737693044332,-159.23,0.00021643,3]
[350209891,1737693044342,-1082.02,0.00021643,3]
[350209892,1737693044351,-500.0,0.00021643,3]
[350209893,1737693044361,-545.44,0.00021643,3]
[350209894,1737693044370,-587.0,0.00021658,2]
[350209895,1737693044380,-250.038708,0.00021693,3]
[350209896,1737693044389,-936.55,0.0002178,3]
[350209897,1737693044398,-1082.02,0.0002178,3]
[350209898,1737693044408,-500.0,0.0002178,3]
[350209899,1737693044418,-545.44,0.0002178,3]
[350209900,1737693044427,-150.0,0.000218,5]
[350209901,1737693044437,-150.0,0.000218,2]
[350209902,1737693044446,-250.038708,0.00021831,3]
[350209903,1737693044455,-936.55,0.00021917,3]
[350209904,1737693044465,-1082.02,0.00021917,3]
[350209905,1737693044475,-276.5887,0.00021917,3]
[350209906,1737693044484,-545.44,0.00021917,3]
[350209907,1737693044494,-250.038708,0.00021969,3]
[350209908,1737693044504,-324.0048691,0.00022,2]
[350209909,1737693044514,-370.12594395,0.00022,2]
[350209910,1737693044524,-936.55,0.00022054,3]
[350209911,1737693044533,-1082.02,0.00022054,3]
[350209912,1737693044543,-545.44,0.00022054,3]
[350209913,1737693044553,-466.28598511,0.00022087,2]
[350209914,1737693044562,-160.0,0.00022099,2]
[350209915,1737693044572,-160.0,0.00022099,2]
[350209916,1737693044581,-160.0,0.00022099,2]
[350209917,1737693044590,-500.0,0.000221,2]
[350209918,1737693044599,-519.31770438,0.000221,2]
[350209919,1737693044608,-500.0,0.000221,2]
[350209920,1737693044618,-524.94196028,0.000221,2]
[350209921,1737693044627,-500.0,0.000221,2]
[350209922,1737693044637,-500.0,0.000221,2]
[350209923,1737693044646,-500.0,0.000221,2]
[350209924,1737693044655,-500.0,0.000221,2]
[350209925,1737693044665,-500.0,0.000221,2]
[350209926,1737693044675,-731.7595111,0.000221,2]
[350209927,1737693044685,-3400.0,0.000221,2]
[350209928,1737693044694,-3400.0,0.000221,2]
[350209929,1737693044704,-3400.0,0.000221,2]
[350209930,1737693044713,-3400.0,0.000221,2]
[350209931,1737693044722,-3400.0,0.000221,2]
[350209932,1737693044731,-3400.0,0.000221,2]
[350209933,1737693044740,-3400.0,0.000221,2]
[350209934,1737693044750,-3500.0,0.000221,2]
[350209935,1737693044759,-3400.0,0.000221,2]
[350209936,1737693044769,-3500.0,0.000221,2]
[350209937,1737693044778,-3400.0,0.000221,2]
[350209938,1737693044788,-3500.0,0.000221,2]
[350209939,1737693044797,-3400.0,0.000221,2]
[350209940,1737693044806,-3500.0,0.000221,2]
[350209941,1737693044815,-3400.0,0.000221,2]
[350209942,1737693044824,-3500.0,0.000221,2]
[350209943,1737693044834,-3500.0,0.000221,2]
[350209944,1737693044847,-3500.0,0.000221,2]
[350209945,1737693044857,-3400.0,0.000221,2]
[350209946,1737693044866,-3500.0,0.000221,2]
[350209947,1737693044875,-3400.0,0.000221,2]
[350209948,1737693044885,-3500.0,0.000221,2]
[350209949,1737693044894,-4789.61992938,0.000221,2]
[350209950,1737693044903,-3500.0,0.000221,2]
[350209951,1737693044912,-3500.0,0.000221,2]
[350209952,1737693044923,-3500.0,0.000221,2]
[350209953,1737693044932,-3500.0,0.000221,2]
[350209954,1737693044941,-5616.12892534,0.000221,2]
[350209955,1737693044950,-250.038708,0.00022107,3]
[350209956,1737693044959,-163.48,0.00022172,2]
[350209957,1737693044968,-500.0,0.00022172,2]
[350209958,1737693044977,-151.0,0.00022172,2]
[350209959,1737693044987,-1200.0,0.00022172,2]
[350209960,1737693044996,-160.0,0.0002219,2]
[350209961,1737693045005,-936.55,0.00022191,3]
[350209962,1737693045014,-1082.02,0.00022191,3]
[350209963,1737693045023,-545.44,0.00022191,3]
[350209964,1737693045033,-3155.55149751,0.000222,2]
[350209965,1737693045042,-152.0,0.00022224,2]
[350209966,1737693045051,-152.0,0.00022224,2]
[350209967,1737693045061,-250.038708,0.00022245,3]
[350209968,1737693045070,-154.2311524,0.00022247,2]
[350209969,1737693045080,-153.0,0.00022247,2]
[350209970,1737693045090,-154.2311524,0.00022247,2]
[350209971,1737693045099,-153.0,0.00022247,2]
[350209972,1737693045107,-154.2311524,0.00022247,2]
[350209973,1737693045117,-154.2311524,0.00022247,2]
[350209974,1737693045126,-153.0,0.00022247,2]
[350209975,1737693045135,-154.2311524,0.00022247,2]
[350209976,1737693045144,-936.57510317,0.00022328,3]
[350209977,1737693045154,-1082.19,0.00022328,3]
[350209978,1737693045163,-545.61,0.00022328,3]
[350209979,1737693045173,-250.038708,0.00022383,3]
[350209981,1737693045182,-160.0,0.00022428,2]
[350209982,1737693045191,-160.56362075,0.00022428,2]
[350209983,1737693045201,-152.0,0.00022429,2]
[350209984,1737693045210,-152.0,0.00022429,2]
[350209985,1737693045219,-152.0,0.00022429,2]
[350209986,1737693045228,-212.14,0.00022429,2]
[350209987,1737693045238,-155.0,0.00022429,2]
[350209988,1737693045247,-155.0,0.00022429,2]
[350209989,1737693045256,-155.0,0.00022429,2]
[350209990,1737693045266,-155.0,0.00022429,2]
[350209991,1737693045276,-155.0,0.00022429,2]
[350209992,1737693045285,-155.0,0.00022429,2]
[350209993,1737693045295,-155.0,0.00022429,2]
[350209994,1737693045304,-155.0,0.00022429,2]
[350209995,1737693045313,-155.0,0.00022429,2]
[350209996,1737693045322,-155.0,0.00022429,2]
[350209997,1737693045332,-155.0,0.00022429,2]
[350209998,1737693045341,-155.0,0.00022429,2]
[350209999,1737693045350,-155.0,0.00022429,2]
[350210000,1737693045360,-155.0,0.00022429,2]
[350210001,1737693045369,-155.0,0.00022429,2]
[350210002,1737693045379,-155.0,0.00022429,2]
[350210003,1737693045388,-155.0,0.00022429,2]
[350210004,1737693045397,-155.0,0.00022429,2]
[350210005,1737693045406,-155.0,0.00022429,2]
[350210006,1737693045415,-155.0,0.00022429,2]
[350210007,1737693045426,-155.0,0.00022429,2]
[350210008,1737693045435,-155.0,0.00022429,2]
[350210010,1737693045445,-155.0,0.00022429,2]
[350210012,1737693045455,-155.0,0.00022429,2]
[350210014,1737693045464,-166.89,0.00022429,2]
[350210016,1737693045473,-250.038708,0.00022521,3]
[350210017,1737693045482,-2000.0,0.00022558,2]
[350210019,1737693045491,-1000.0,0.00022603,30]
[350210021,1737693045501,-152.0,0.00022612,2]
[350210023,1737693045510,-152.0,0.00022612,2]
[350210024,1737693045519,-152.0,0.00022612,2]
[350210026,1737693045528,-152.0,0.00022612,2]
[350210028,1737693045538,-152.0,0.00022612,2]
[350210029,1737693045548,-152.0,0.00022612,2]
[350210030,1737693045557,-152.0,0.00022612,2]
[350210032,1737693045566,-152.0,0.00022612,2]
[350210034,1737693045575,-152.0,0.00022612,2]
[350210036,1737693045585,-152.0,0.00022612,2]
[350210038,1737693045594,-152.0,0.00022612,2]
[350210040,1737693045603,-152.0,0.00022612,2]
[350210042,1737693045613,-152.0,0.00022612,2]
[350210044,1737693045622,-152.0,0.00022612,2]
[350210046,1737693045631,-152.0,0.00022612,2]
[350210056,1737693045717,-152.0,0.00022612,2]
[350210058,1737693045727,-152.0,0.00022612,2]